bitfinex/quotes_SOLUSD_20240902
["timestamp","ask_amount","ask_price","bid_price","bid_amount"]
[1725264458173,7.812,128.01,127.97,7.8142]
[1725264458382,32.53733135,128.02,127.97,7.8142]
[1725264458780,45.0,128.01,127.97,7.8142]
[1725264460500,45.0,128.01,127.96,35.4046]
[1725264460665,45.0,128.01,127.98,7.8137]
[1725264465396,52.812,128.01,127.96,35.4046]
[1725264465606,24.72593135,128.0,127.96,35.4046]
[1725264465783,45.0,127.99,127.96,35.4046]
[1725264466094,32.53723135,128.02,127.96,35.4046]
[1725264466302,45.0,128.01,127.96,35.4046]
[1725264467273,45.0,128.01,127.97,7.8137]
[1725264473022,52.812,128.01,127.97,7.8137]
[1725264477001,45.0,128.01,127.98,7.8135]
[1725264477184,32.53613135,128.04,127.98,19.5335]
[1725264477384,24.72593135,128.04,127.98,19.5335]
[1725264477986,9.87754243,128.04,127.98,19.5335]
[1725264478380,11.67049729,128.06,128.01,7.8118]
[1725264478582,11.67049729,128.06,128.02,15.1448]
[1725264478583,3.86169729,128.06,128.02,15.1448]
[1725264479385,3.86169729,128.06,128.03,7.8105]
[1725264480205,3.86169729,128.06,128.05,7.8094]
[1725264480522,53.08983444,128.11,128.06,7.8086]
[1725264480707,3.86169729,128.09,128.06,7.8086]
[1725264481697,3.86169729,128.09,128.07,7.8081]
[1725264481884,3.86169729,128.09,128.06,19.521]
[1725264482414,3.86169729,128.09,128.04,7.8095]
[1725264483498,11.66889729,128.09,128.04,7.8095]
[1725264484106,7.8088,128.06,128.02,15.1448]
[1725264484422,28.54384178,128.09,128.02,15.1448]
[1725264484590,45.0,128.08,128.02,15.1448]
[1725264485411,7.8083,128.07,128.02,22.9559]
[1725264486111,24.68214449,128.07,128.0,19.5307]
[1725264486419,24.68214449,128.05,128.0,19.5307]
[1725264487298,24.68214449,128.05,128.0,27.343]
[1725264487299,32.49174449,128.05,128.0,27.343]
[1725264489428,24.68214449,128.07,128.0,19.5307]
[1725264489609,32.49094449,128.07,128.02,7.8112]
[1725264489921,7.8088,128.07,128.02,7.8112]
[1725264490127,7.8089,128.06,128.02,7.8112]
[1725264490803,7.8099,128.05,128.0,19.5307]
[1725264491019,7.8099,128.05,128.0,27.3426]
[1725264491315,7.8099,128.05,127.99,16.0702]
[1725264491316,24.68214449,128.03,127.99,16.0702]
[1725264491519,7.8118,128.01,127.99,16.0702]
[1725264491722,24.68214449,128.03,127.99,23.8832]
[1725264491900,32.49284449,128.03,127.99,16.0702]
[1725264496121,7.8113,128.02,127.99,16.0702]
[1725264498328,24.68214449,128.01,127.97,7.8141]
[1725264498530,32.49534449,127.99,127.96,15.8195]
[1725264498695,7.8126,128.0,127.95,13.8594]
[1725264499902,32.49534449,127.99,127.95,6.044]
[1725264501522,7.8143,127.97,127.93,35.3608]
[1725264501725,7.8143,127.97,127.93,43.1775]
[1725264502025,32.49644449,127.97,127.93,35.3608]
[1725264503434,32.49644449,127.97,127.93,19.5413]
[1725264503731,32.49644449,127.97,127.92,14.3051]
[1725264503732,7.8151,127.96,127.92,6.4878]
[1725264503904,7.8155,127.95,127.91,7.8179]
[1725264504324,32.49764449,127.95,127.9,34.8832]
[1725264504713,32.49764449,127.95,127.9,42.7016]
[1725264505204,7.817,127.93,127.9,15.3374]
[1725264505744,32.49914449,127.93,127.88,14.0911]
[1725264507564,24.68214449,127.93,127.88,6.2719]
[1725264509455,32.49904449,127.93,127.88,14.0917]
[1725264512535,32.49904449,127.93,127.88,7.8198]
[1725264513166,24.68214449,127.93,127.89,7.8189]
[1725264514462,32.49894449,127.93,127.88,7.8197]
[1725264516069,9.89747896,127.91,127.88,7.8197]
[1725264518743,9.89747896,127.91,127.87,7.8204]
[1725264519541,9.89747896,127.89,127.86,19.5512]
[1725264527170,7.8186,127.9,127.86,19.5512]
[1725264527379,17.71667896,127.89,127.86,19.5512]
[1725264528904,9.89747896,127.89,127.86,19.5512]
[1725264532186,7.8187,127.9,127.86,19.5512]
[1725264532391,51.83914117,127.94,127.88,7.8193]
[1725264532703,9.89747896,127.91,127.86,19.5512]
[1725264533307,7.8168,127.93,127.86,25.7051]
[1725264533475,9.89747896,127.92,127.86,25.7051]
[1725264534176,9.89747896,127.9,127.86,25.7051]
[1725264535172,9.89747896,127.88,127.84,16.5274]
[1725264535391,9.89747896,127.86,127.84,16.5274]
[1725264536991,16.2796,127.91,127.84,36.0818]
[1725264537213,7.8168,127.93,127.88,7.8197]
[1725264537408,9.89747896,127.91,127.88,7.8197]
[1725264537618,7.8176,127.92,127.87,7.8203]
[1725264537818,9.89747896,127.9,127.86,27.3724]
[1725264539887,7.818,127.91,127.86,27.3724]
[1725264540119,32.56687167,127.91,127.86,27.3724]
[1725264541725,32.56817167,127.89,127.84,24.3495]
[1725264544621,52.82,127.88,127.83,7.8224]
[1725264544810,24.74887167,127.87,127.83,7.8224]
[1725264545825,32.56927167,127.87,127.83,7.8224]
[1725264546838,32.56927167,127.87,127.82,27.3812]
[1725264547216,24.74887167,127.85,127.82,19.5579]
[1725264547415,32.57067167,127.85,127.81,0.8284627]
[1725264547830,7.8222,127.84,127.81,0.8284627]
[1725264548206,32.57197167,127.83,127.81,0.8284627]
[1725264549034,24.74887167,127.83,127.81,0.8284627]
[1725264549827,45.0,127.82,127.81,0.8284627]
[1725264550414,32.57197167,127.83,127.81,0.8284627]
[1725264550741,7.8235,127.82,127.81,0.8284627]
[1725264551119,52.8235,127.82,127.81,0.8284627]
[1725264551546,41.82105991,127.78,127.71,15.0425]
[1725264551717,32.57607167,127.76,127.71,15.0425]
[1725264552459,52.8278,127.75,127.71,15.0425]
[1725264552832,7.8278,127.75,127.71,15.0425]
[1725264553049,32.57757167,127.74,127.68,8.6603627]
[1725264553246,66.56993158,127.74,127.68,0.8284627]
[1725264553434,45.0,127.73,127.68,0.8284627]
[1725264554127,24.74887167,127.74,127.68,0.8284627]
[1725264554331,7.8292,127.73,127.68,8.6602627]
[1725264554554,24.74887167,127.74,127.68,0.8284627]
[1725264554759,32.57727167,127.74,127.68,8.6598627]
[1725264555957,7.8292,127.73,127.68,8.6598627]
[1725264556670,24.74887167,127.74,127.68,8.6598627]
[1725264557246,32.57727167,127.74,127.68,8.6598627]
[1725264557852,7.8294,127.73,127.68,0.8284627]
[1725264558353,7.8294,127.73,127.68,8.6602627]
[1725264560368,32.57727167,127.74,127.68,8.6602627]
[1725264561170,32.57727167,127.74,127.69,7.8314]
[1725264561544,24.74887167,127.74,127.7,7.8307]
[1725264561739,32.57657167,127.76,127.7,7.8307]
[1725264563190,7.8279,127.75,127.7,7.8307]
[1725264563877,32.57607167,127.76,127.71,7.8296]
[1725264564044,24.74887167,127.78,127.73,7.8288]
[1725264564244,32.57527167,127.78,127.72,7.8295]
[1725264564845,24.74887167,127.78,127.73,16.5711]
[1725264565279,32.57477167,127.78,127.73,16.5711]
[1725264566252,32.57477167,127.78,127.73,24.4]
[1725264567546,24.74887167,127.78,127.74,7.8284]
[1725264568364,32.57477167,127.78,127.74,7.8284]
[1725264571980,9.91946502,127.77,127.73,16.5711]
[1725264573259,9.91946502,127.77,127.73,24.3998]
[1725264576278,16.1134,127.82,127.79,7.8253]
[1725264576581,55.86695991,127.84,127.78,27.3895]
[1725264576582,17.56170689,127.84,127.78,27.3895]
[1725264576782,9.73930689,127.84,127.78,19.5637]
[1725264577085,9.91946502,127.83,127.78,27.3891]
[1725264577258,9.91946502,127.84,127.8,7.8246]
[1725264577587,48.29875991,127.91,127.8,6.2337]
[1725264577754,9.91946502,127.87,127.82,19.5572]
[1725264577956,24.75798454,127.89,127.82,19.5572]
[1725264578275,24.75798454,127.89,127.85,7.8216]
[1725264578472,24.75798454,127.89,127.82,19.5572]
[1725264578685,32.57728454,127.89,127.83,7.8223]
[1725264578879,32.57728454,127.89,127.84,7.8222]
[1725264579185,24.75798454,127.89,127.84,7.8222]
[1725264579567,32.57718454,127.89,127.84,7.8222]
[1725264580291,32.57718454,127.89,127.83,7.8228]
[1725264580594,24.75798454,127.89,127.84,7.822]
[1725264580772,24.75798454,127.89,127.85,7.8215]
[1725264581461,24.75798454,127.91,127.87,7.8203]
[1725264582475,24.75798454,127.89,127.85,27.3751]
[1725264582802,24.75798454,127.89,127.86,7.8209]
[1725264583977,24.75798454,127.89,127.85,27.3756]
[1725264585492,45.18461653,127.92,127.85,19.554]
[1725264585493,3.36355662,127.92,127.85,19.554]
[1725264585786,24.75798454,127.91,127.87,27.3701]
[1725264586089,24.75798454,127.91,127.88,7.8197]
[1725264588466,24.75798454,127.91,127.87,27.3701]
[1725264589388,24.75798454,127.89,127.87,27.3701]
[1725264590577,24.75798454,127.91,127.88,7.8198]
[1725264591773,24.75798454,127.91,127.87,27.3701]
[1725264592780,32.57608454,127.91,127.87,27.3701]
[1725264593271,32.57608454,127.91,127.87,19.5498]
[1725264596193,32.57608454,127.91,127.87,27.3701]
[1725264600104,9.90068905,127.89,127.87,27.3701]
[1725264600913,9.90068905,127.89,127.88,7.8198]
[1725264601595,9.90068905,127.89,127.87,27.3701]
[1725264601780,9.90068905,127.89,127.85,23.7901]
[1725264601990,9.90068905,127.87,127.85,23.7901]
[1725264603384,9.90068905,127.87,127.84,27.377]
[1725264604979,9.90068905,127.87,127.85,7.8216]
[1725264605309,9.90068905,127.88,127.86,7.8209]
[1725264605493,9.90068905,127.9,127.86,7.8209]
[1725264606417,9.90068905,127.9,127.87,7.82]
[1725264607119,9.90068905,127.9,127.88,7.8197]
[1725264607321,61.1879572,127.95,127.9,19.5457]
[1725264607322,15.5052,127.95,127.9,19.5457]
[1725264607611,9.90068905,127.95,127.93,7.8161]
[1725264607813,30.0,127.94,127.93,7.8161]
[1725264608314,24.72653725,127.99,127.88,45.5377]
[1725264608511,24.72653725,127.99,127.94,27.3544]
[1725264608727,48.29925991,128.01,127.94,19.5388]
[1725264608728,24.72653725,127.97,127.94,19.5388]
[1725264609787,24.72653725,127.97,127.95,7.8153]
[1725264610093,24.72653725,127.97,127.94,19.5388]
[1725264611287,24.72653725,127.97,127.94,27.3546]
[1725264612314,24.72653725,127.97,127.95,7.8155]
[1725264612613,24.72653725,127.99,127.95,7.8155]
[1725264613294,24.72653725,127.99,127.96,7.8147]
[1725264613499,32.53843725,128.01,127.96,7.8147]
[1725264614320,24.72653725,128.03,127.99,7.8131]
[1725264615017,24.72653725,128.03,128.0,7.8119]
[1725264615212,24.72653725,128.03,127.99,19.5316]
[1725264615411,24.72653725,128.01,127.96,19.5373]
[1725264616295,32.53843725,128.01,127.96,27.352]
[1725264616633,24.72653725,128.01,127.97,7.8142]
[1725264617004,24.72653725,128.01,127.98,7.8136]
[1725264617720,7.8113,128.02,127.97,7.8142]
[1725264617922,20.0,128.01,127.97,7.8142]
[1725264618123,24.72653725,128.03,127.96,19.5373]
[1725264618443,24.72653725,128.03,127.97,7.8142]
[1725264618444,24.72653725,128.01,127.97,7.8142]
[1725264618600,24.72653725,128.01,127.98,7.8132]
[1725264618924,20.0,128.02,127.98,7.8132]
[1725264620937,32.53713725,128.03,127.96,19.5373]
[1725264621105,24.72653725,128.03,128.0,7.8124]
[1725264621311,24.72653725,128.05,128.01,7.8117]
[1725264623938,24.72653725,128.05,128.02,7.8112]
[1725264624234,24.72653725,128.05,128.03,7.8101]
[1725264624407,24.72653725,128.05,128.02,27.338]
[1725264625746,24.72653725,128.05,128.02,19.5269]
[1725264626338,24.72653725,128.05,128.02,27.338]
[1725264629125,24.72653725,128.05,128.02,19.5269]
[1725264629331,24.72653725,128.03,128.02,19.5269]
[1725264629537,24.72653725,128.03,128.0,21.3352]
[1725264630334,7.8097,128.05,128.0,21.3352]
[1725264630722,49.06833007,128.08,128.0,40.8654]
[1725264630723,7.8089,128.06,128.0,40.8654]
[1725264631446,7.8089,128.06,128.01,7.8118]
[1725264633317,7.8089,128.06,128.02,7.8112]
[1725264634829,7.8089,128.06,128.01,7.8117]
[1725264635251,22.813,128.11,128.0,60.3973]
[1725264635427,7.8065,128.1,128.05,7.8092]
[1725264637261,7.8065,128.1,128.06,7.8087]
[1725264637740,41.82105991,128.12,128.06,7.8087]
[1725264637940,3.86169729,128.11,128.05,7.8093]
[1725264638734,7.8069,128.1,128.05,7.8093]
[1725264638929,7.8074,128.09,128.04,19.5241]
[1725264639264,49.62755991,128.1,128.05,7.8093]
[1725264639439,45.0,128.09,128.05,7.8093]
[1725264639645,52.8071,128.09,128.04,27.3341]
[1725264640168,7.8076,128.08,128.04,19.5241]
[1725264641532,52.807,128.09,128.04,27.3341]
[1725264643153,7.807,128.09,128.04,27.3341]
[1725264643946,7.807,128.09,128.05,7.8094]
[1725264644249,7.8065,128.1,128.05,7.8094]
[1725264645263,7.8065,128.1,128.05,23.9152]
[1725264646934,7.8065,128.1,128.06,7.8087]
[1725264647134,3.39724064,128.12,128.07,7.808]
[1725264647336,83.62845991,128.14,128.07,7.808]
[1725264648056,7.8052,128.12,128.08,7.8075]
[1725264648355,7.8052,128.12,128.06,19.5212]
[1725264648356,12.02485492,128.13,128.09,7.8068]
[1725264648550,0.8284627,128.13,128.12,7.8051]
[1725264654340,0.8284627,128.13,128.12,52.8051]
[1725264655378,0.8284627,128.13,128.12,72.8051]
[1725264656158,7.7996,128.22,128.17,7.8019]
[1725264656358,45.0,128.21,128.17,7.8019]
[1725264656669,52.7997,128.21,128.16,27.3091]
[1725264658167,45.0,128.2,128.14,7.8033]
[1725264658364,45.0,128.2,128.15,7.8033]
[1725264658675,7.8004,128.2,128.15,7.8033]
[1725264658968,45.0,128.19,128.14,7.8038]
[1725264660246,7.8015,128.18,128.13,27.3152]
[1725264660445,7.804,128.14,128.09,7.8067]
[1725264660651,7.8034,128.15,128.1,7.8062]
[1725264660851,7.8028,128.16,128.11,7.8057]
[1725264661167,30.0,128.17,128.12,7.8049]
[1725264661368,30.0,128.17,128.13,7.8042]
[1725264662550,7.8021,128.18,128.13,7.8042]
[1725264662758,45.0,128.17,128.13,7.8042]
[1725264663842,7.8009,128.19,128.14,7.8034]
[1725264665759,7.8004,128.2,128.15,7.8031]
[1725264666476,7.8004,128.2,128.16,7.8026]
[1725264666683,7.7998,128.21,128.16,7.8026]
[1725264666851,15.1284,128.24,128.16,19.5063]
[1725264667051,7.7989,128.23,128.18,7.8013]
[1725264667372,11.65959729,128.24,128.19,7.8006]
[1725264667702,0.8284627,128.25,128.23,7.7979]
[1725264668161,0.8284627,128.25,128.22,27.2956]
[1725264668555,0.8284627,128.25,128.23,7.7981]
[1725264669678,0.8284627,128.25,128.24,7.7978]
[1725264670359,0.8284627,128.25,128.24,14.032]
[1725264672453,0.8284627,128.25,128.24,59.032]
[1725264672649,7.7917,128.35,128.27,19.49]
[1725264672873,3.86169729,128.34,128.3,7.7938]
[1725264673281,3.86169729,128.34,128.24,90.2214]
[1725264673579,45.6827572,128.39,128.33,7.7924]
[1725264673791,6.3773,128.42,128.34,7.7915]
[1725264673792,41.82105991,128.41,128.34,7.7915]
[1725264673960,41.82105991,128.41,128.36,7.7904]
[1725264674278,41.82105991,128.41,128.35,19.4779]
[1725264674787,7.7884,128.4,128.35,19.4779]
[1725264675083,42.64952261,128.38,128.32,7.7924]
[1725264675450,42.64952261,128.38,128.31,25.9873]
[1725264675451,0.8284627,128.38,128.33,7.7921]
[1725264676851,0.8284627,128.38,128.34,7.7912]
[1725264677676,0.8284627,128.38,128.34,19.4793]
[1725264678253,0.8284627,128.38,128.35,7.7906]
[1725264678453,0.8284627,128.38,128.34,19.4793]
[1725264678454,0.8284627,128.38,128.36,7.7904]
[1725264679267,0.8284627,128.38,128.35,7.7911]
[1725264679873,0.8284627,128.38,128.34,27.2711]
[1725264681593,0.8284627,128.38,128.36,7.7903]
[1725264681880,0.8284627,128.38,128.35,7.7911]
[1725264682083,0.8284627,128.38,128.34,27.271]
[1725264682390,0.8284627,128.38,128.34,19.4793]
[1725264682558,0.8284627,128.38,128.34,27.271]
[1725264683375,45.8284627,128.38,128.34,27.271]
[1725264683690,0.8284627,128.38,128.35,7.791]
[1725264684210,0.8284627,128.38,128.37,7.7899]
[1725264685057,0.8284627,128.38,128.37,9.34772706]
[1725264685257,0.8284627,128.38,128.37,14.1304]
[1725264685480,0.8284627,128.38,128.37,60.6870636]
[1725264685696,49.60435991,128.48,128.42,7.7864]
[1725264685852,49.60435991,128.48,128.43,7.7861]
[1725264686490,7.7833,128.48,128.43,7.7861]
[1725264689701,41.82105991,128.46,128.41,19.4677]
[1725264689990,41.82105991,128.46,128.4,7.788]
[1725264689991,52.7854,128.45,128.4,7.788]
[1725264690170,45.0,128.45,128.41,7.787]
[1725264690368,45.0,128.46,128.41,7.787]
[1725264690700,45.0,128.45,128.41,7.787]
[1725264690873,7.7847,128.46,128.41,7.787]
[1725264691189,45.0,128.45,128.41,7.787]
[1725264691387,41.82105991,128.48,128.4,19.4692]
[1725264691572,7.7832,128.49,128.44,7.7855]
[1725264692089,7.7832,128.49,128.43,27.2517]
[1725264692296,41.82105991,128.5,128.45,7.7849]
[1725264692586,49.60335991,128.5,128.44,7.7856]
[1725264692992,0.8284627,128.51,128.46,7.7844]
[1725264693174,0.8284627,128.51,128.47,7.7837]
[1725264693570,0.8284627,128.51,128.47,19.4586]
[1725264693897,0.8284627,128.51,128.5,7.7821]
[1725264694480,0.8284627,128.51,128.5,27.2373]
[1725264694898,0.8284627,128.51,128.5,43.8382]
[1725264695199,51.81403311,128.61,128.53,19.4507]
[1725264695406,7.776,128.6,128.53,19.4507]
[1725264695612,7.7755,128.61,128.55,7.7784]
[1725264695989,7.7755,128.61,128.56,7.7783]
[1725264696193,41.82105991,128.61,128.53,27.2303]
[1725264696376,7.7772,128.59,128.53,27.2303]
[1725264696801,41.82105991,128.61,128.54,7.7792]
[1725264696802,7.7761,128.6,128.54,7.7792]
[1725264697179,7.7779,128.57,128.5,22.6813]
[1725264697497,7.7784,128.56,128.5,7.7819]
[1725264697813,7.7791,128.55,128.5,7.7819]
[1725264699082,41.82105991,128.55,128.48,7.7832]
[1725264699307,49.60065991,128.55,128.49,7.7825]
[1725264699479,7.7796,128.55,128.5,7.7819]
[1725264699883,41.82105991,128.59,128.51,7.7813]
[1725264700188,7.778,128.57,128.51,7.7812]
[1725264700378,7.7785,128.56,128.51,7.7812]
[1725264701008,7.7785,128.56,128.47,22.1344]
[1725264701009,7.781,128.52,128.47,22.1344]
[1725264701914,41.82105991,128.51,128.44,6.0373]
[1725264702130,45.0,128.5,128.44,6.0373]
[1725264702295,52.7821,128.5,128.44,13.8225]
[1725264702807,7.7827,128.49,128.43,24.0414]
[1725264703318,45.0,128.5,128.44,19.4628]
[1725264703493,41.82105991,128.49,128.43,16.2552]
[1725264703696,41.82105991,128.49,128.42,7.7868]
[1725264703697,45.0,128.48,128.42,7.7868]
[1725264703892,45.0,128.48,128.41,6.6102]
[1725264704129,7.7844,128.47,128.42,7.7866]
[1725264704301,45.0,128.48,128.41,6.6102]
[1725264704505,45.0,128.49,128.44,7.7857]
[1725264704807,86.82105991,128.49,128.41,6.6102]
[1725264705021,52.7832,128.49,128.43,7.7858]
[1725264705318,52.7832,128.49,128.41,14.3974]
[1725264705319,7.7846,128.46,128.41,14.3974]
[1725264705857,7.7846,128.46,128.41,6.6102]
[1725264706011,41.82105991,128.47,128.37,21.5854]
[1725264706012,7.7866,128.43,128.37,21.5854]
[1725264706505,41.82105991,128.45,128.38,7.7888]
[1725264706506,7.7858,128.44,128.38,7.7888]
[1725264706824,5.0,128.51,128.37,21.5854]
[1725264706825,41.82105991,128.5,128.39,19.4714]
[1725264707028,45.0,128.48,128.39,19.4714]
[1725264708030,52.7833,128.48,128.43,7.7863]
[1725264708512,7.7839,128.47,128.42,7.7868]
[1725264709021,20.0,128.49,128.41,19.4678]
[1725264709212,86.82105991,128.48,128.41,19.4678]
[1725264709532,7.7844,128.47,128.42,7.7868]
[1725264710249,7.7845,128.46,128.41,27.2553]
[1725264710725,86.82105991,128.48,128.41,27.2553]
[1725264710726,86.82105991,128.48,128.42,7.7864]
[1725264712341,7.7832,128.49,128.44,7.7856]
[1725264712639,7.7834,128.48,128.42,7.7863]
[1725264713146,7.7834,128.48,128.43,7.786]
[1725264713515,41.82105991,128.5,128.41,19.4678]
[1725264713716,41.82105991,128.5,128.39,7.7882]
[1725264713717,7.7858,128.44,128.39,7.7882]
[1725264714135,41.82105991,128.48,128.4,7.7881]
[1725264714338,16.0631,128.55,128.42,6.1325]
[1725264714522,7.7797,128.54,128.46,19.4602]
[1725264714732,7.7752,128.62,128.53,19.4502]
[1725264714917,8.5863905,128.64,128.58,7.7769]
[1725264715246,8.5863905,128.64,128.55,21.4374]
[1725264715247,7.776,128.6,128.55,21.4374]
[1725264715423,7.776,128.6,128.55,29.2164]
[1725264715932,7.7753,128.62,128.56,7.7783]
[1725264716529,3.86169729,128.63,128.57,7.7777]
[1725264716728,0.8125905,128.64,128.58,19.4422]
[1725264717043,0.8125905,128.64,128.61,7.7753]
[1725264717717,0.8125905,128.64,128.62,7.7747]
[1725264717924,7.7693,128.72,128.57,5.0]
[1725264718148,7.7693,128.72,128.64,19.4329]
[1725264718348,1.26106,128.74,128.62,7.7744]
[1725264718349,41.82105991,128.71,128.62,7.7744]
[1725264718545,41.82105991,128.69,128.62,7.7744]
[1725264718850,41.82105991,128.69,128.6,19.4393]
[1725264719216,41.82105991,128.66,128.56,19.4458]
[1725264719416,49.58995991,128.72,128.65,7.7728]
[1725264719617,1.26106,128.74,128.63,19.4344]
[1725264719862,1.26106,128.74,128.6,5.0]
[1725264720025,1.26106,128.74,128.7,7.7697]
[1725264720353,1.26106,128.74,128.69,27.1958]
[1725264720531,9.02866,128.74,128.67,7.7713]
[1725264720719,43.08211991,128.74,128.66,15.1277]
[1725264720951,43.08211991,128.74,128.65,33.3142]
[1725264721326,7.7688,128.72,128.66,7.7723]
[1725264721635,7.7694,128.71,128.65,25.5417]
[1725264721815,7.7694,128.71,128.65,19.4319]
[1725264722024,41.82105991,128.72,128.61,19.4376]
[1725264722239,1.26106,128.74,128.61,19.4376]
[1725264722240,41.82105991,128.69,128.61,19.4376]
[1725264722445,7.7712,128.68,128.62,7.7746]
[1725264722628,45.0,128.71,128.63,7.7741]
[1725264722827,7.7706,128.69,128.63,7.7741]
[1725264723069,41.82105991,128.67,128.6,15.7272]
[1725264723360,41.82105991,128.67,128.57,19.444]
[1725264723361,7.7723,128.67,128.61,7.7753]
[1725264723545,86.82105991,128.68,128.59,7.776]
[1725264723546,7.7724,128.66,128.59,7.776]
[1725264723746,7.7724,128.66,128.57,19.444]
[1725264723747,7.7724,128.66,128.6,7.7757]
[1725264724233,7.7749,128.62,128.57,19.444]
[1725264724433,41.82105991,128.65,128.59,7.7762]
[1725264724638,45.0,128.64,128.59,7.7762]
[1725264725161,41.82105991,128.71,128.63,7.774]
[1725264725453,7.7715,128.68,128.61,19.4385]
[1725264726359,7.7731,128.65,128.6,7.7757]
[1725264726566,7.7731,128.65,128.59,7.7766]
[1725264726770,7.7748,128.63,128.57,19.4433]
[1725264727054,7.7748,128.62,128.57,19.4433]
[1725264727429,41.82105991,128.67,128.54,15.937]
[1725264727637,6.0011,128.72,128.6,6.4802]
[1725264727638,41.82105991,128.72,128.6,6.4802]
[1725264728152,41.82105991,128.72,128.62,19.4368]
[1725264728361,7.77,128.7,128.62,19.4368]
[1725264728556,7.7707,128.69,128.64,7.7736]
[1725264728949,41.82105991,128.72,128.62,19.4368]
[1725264729137,7.7687,128.73,128.66,7.7723]
[1725264729340,7.7687,128.73,128.67,1.55308778]
[1725264729657,7.7689,128.72,128.65,27.2048]
[1725264729961,61.24155991,128.73,128.64,15.7761]
[1725264730137,7.7705,128.7,128.64,7.7735]
[1725264730340,41.82105991,128.7,128.62,7.7742]
[1725264730547,43.08211991,128.74,128.63,19.4341]
[1725264730750,43.08211991,128.74,128.59,54.6651]
[1725264730751,20.0,128.73,128.59,54.6651]
[1725264730934,5.12275729,128.74,128.65,5.0]
[1725264731140,1.26106,128.74,128.72,19.4218]
[1725264731335,1.26106,128.74,128.73,7.7681]
[1725264731755,1.26106,128.74,128.72,19.4218]
[1725264732164,1.26106,128.74,128.73,7.7681]
[1725264733176,1.26106,128.74,128.72,19.4218]
[1725264733348,9.02886,128.74,128.68,19.4271]
[1725264733685,1.26106,128.74,128.68,27.1977]
[1725264733887,43.08211991,128.74,128.64,42.5719]
[1725264734187,43.08211991,128.74,128.64,43.6939]
[1725264734188,45.0,128.73,128.64,43.6939]
[1725264734364,43.08211991,128.74,128.64,35.9209]
[1725264734868,20.0,128.73,128.64,35.9209]
[1725264735176,20.0,128.73,128.66,7.7723]
[1725264735489,20.0,128.73,128.64,35.9209]
[1725264735490,29.02916,128.74,128.67,7.7717]
[1725264735781,7.7682,128.73,128.67,7.7717]
[1725264735977,7.7689,128.72,128.66,7.7722]
[1725264736181,7.7689,128.72,128.64,35.9209]
[1725264736182,9.02906,128.74,128.67,19.4292]
[1725264736472,9.02906,128.74,128.68,7.7712]
[1725264736683,9.02906,128.74,128.69,7.7705]
[1725264736852,9.02906,128.74,128.68,7.7711]
[1725264737271,7.7688,128.72,128.67,19.4292]
[1725264737682,1.26106,128.74,128.67,19.4292]
[1725264737865,9.02886,128.74,128.69,7.7705]
[1725264738062,1.26106,128.74,128.69,7.7705]
[1725264738482,1.26106,128.74,128.7,7.7699]
[1725264739393,1.26106,128.74,128.7,7.7697]
[1725264739562,1.26106,128.74,128.71,7.769]
[1725264739956,1.26106,128.74,128.73,7.7681]
[1725264740357,0.8737382,128.78,128.76,19.4148]
[1725264740558,0.8737382,128.78,128.77,7.7657]
[1725264741468,0.8737382,128.78,128.76,27.1811]
[1725264741785,0.8737382,128.78,128.77,7.7657]
[1725264742360,0.8737382,128.78,128.76,19.4148]
[1725264742564,0.8737382,128.78,128.77,7.7657]
[1725264742961,41.82105991,128.89,128.82,7.7626]
[1725264743297,7.7585,128.9,128.84,7.7615]
[1725264743585,0.8737382,128.91,128.86,7.7603]
[1725264744081,8.6310382,128.91,128.86,7.7603]
[1725264744470,8.6310382,128.91,128.84,19.4038]
[1725264744471,8.6310382,128.91,128.84,27.1647]
[1725264744669,0.8737382,128.91,128.84,19.4038]
[1725264744865,0.8737382,128.91,128.78,16.2186]
[1725264745156,0.8737382,128.91,128.84,7.7609]